[Event "*** SCC Grand Prix: Titled Tuesday Blitz"]
[Site "Chess.com"]
[Date "2020.08.11"]
[Round "7"]
[White "Virgo15"]
[Black "Harsha_Bharathakoti"]
[Result "1-0"]
[WhiteElo "2701"]
[BlackElo "2840"]
[TimeControl "180+1"]
[EndTime "11:18:45 PDT"]
[Termination "Virgo15 won on time"]

1. d4 {[%clk 0:03:00]} 1... f5 {[%clk 0:02:53.3]} 2. e4 {[%clk 0:02:56.7]} 2...
fxe4 {[%clk 0:02:49.2]} 3. Nc3 {[%clk 0:02:56.6]} 3... Nf6 {[%clk 0:02:44.7]} 4.
Bg5 {[%clk 0:02:56.5]} 4... e6 {[%clk 0:02:28.8]} 5. Nxe4 {[%clk 0:02:55.8]}
5... Be7 {[%clk 0:02:28.6]} 6. Bxf6 {[%clk 0:02:56.1]} 6... Bxf6 {[%clk
0:02:28.5]} 7. Qh5+ {[%clk 0:02:56.6]} 7... g6 {[%clk 0:02:26.9]} 8. Qh6 {[%clk
0:02:57]} 8... Qe7 {[%clk 0:02:26.1]} 9. Nxf6+ {[%clk 0:02:49.3]} 9... Qxf6
{[%clk 0:02:23.2]} 10. Nf3 {[%clk 0:02:49]} 10... Nc6 {[%clk 0:02:15.8]} 11.
O-O-O {[%clk 0:02:48]} 11... d6 {[%clk 0:02:10.5]} 12. h4 {[%clk 0:02:47.1]}
12... Bd7 {[%clk 0:01:58.6]} 13. Qg5 {[%clk 0:02:21]} 13... Qxg5+ {[%clk
0:01:51]} 14. hxg5 {[%clk 0:02:21.9]} 14... O-O {[%clk 0:01:42.4]} 15. Bc4
{[%clk 0:02:19.8]} 15... Rae8 {[%clk 0:01:31.3]} 16. Rh4 {[%clk 0:02:15.8]}
16... Re7 {[%clk 0:01:26.4]} 17. Rdh1 {[%clk 0:02:09.3]} 17... Na5 {[%clk
0:01:19.3]} 18. Bd3 {[%clk 0:02:07.1]} 18... Bc6 {[%clk 0:01:14.7]} 19. Ne1
{[%clk 0:01:03.5]} 19... b5 {[%clk 0:00:26.5]} 20. f3 {[%clk 0:01:02]} 20... Nc4
{[%clk 0:00:22.6]} 21. b3 {[%clk 0:00:44.8]} 21... Ne3 {[%clk 0:00:22.4]} 22.
Kd2 {[%clk 0:00:39.4]} 22... Nf5 {[%clk 0:00:18]} 23. Bxf5 {[%clk 0:00:38.7]}
23... Rxf5 {[%clk 0:00:15.5]} 24. Rg4 {[%clk 0:00:34.4]} 24... b4 {[%clk
0:00:16]} 25. Nd3 {[%clk 0:00:33.8]} 25... a5 {[%clk 0:00:16.7]} 26. Nb2 {[%clk
0:00:29.9]} 26... Bb5 {[%clk 0:00:16.8]} 27. Nd1 {[%clk 0:00:28.6]} 27... Rff7
{[%clk 0:00:09.9]} 28. Ne3 {[%clk 0:00:28.5]} 28... c6 {[%clk 0:00:10.7]} 29.
Rgh4 {[%clk 0:00:28.8]} 29... e5 {[%clk 0:00:10.7]} 30. Ng4 {[%clk 0:00:27.1]}
30... exd4 {[%clk 0:00:11]} 31. Nf6+ {[%clk 0:00:27.5]} 31... Kh8 {[%clk
0:00:07]} 32. Rxd4 {[%clk 0:00:23.9]} 32... d5 {[%clk 0:00:06.7]} 33. Rdh4
{[%clk 0:00:22.7]} 33... Ba6 {[%clk 0:00:03.2]} 34. Rh6 {[%clk 0:00:22.6]} 34...
Rg7 {[%clk 0:00:02.6]} 35. Re1 {[%clk 0:00:22.6]} 35... Rxe1 {[%clk 0:00:02]}
36. Kxe1 {[%clk 0:00:23.5]} 36... Re7+ {[%clk 0:00:02.9]} 37. Kd2 {[%clk
0:00:23.1]} 37... Bb5 {[%clk 0:00:03.8]} 38. Rh4 {[%clk 0:00:22.1]} 38... Re2+
{[%clk 0:00:04.2]} 39. Kd1 {[%clk 0:00:21.8]} 39... Re7 {[%clk 0:00:05.1]} 40.
g4 {[%clk 0:00:16.4]} 40... Be2+ {[%clk 0:00:05]} 41. Kd2 {[%clk 0:00:16.2]}
41... Bxf3 {[%clk 0:00:05.9]} 42. Rh3 {[%clk 0:00:16.4]} 42... Be4 {[%clk
0:00:05.7]} 43. Rh2 {[%clk 0:00:12.3]} 43... c5 {[%clk 0:00:03.8]} 44. Re2
{[%clk 0:00:08.3]} 44... Re5 {[%clk 0:00:03.2]} 45. Rh2 {[%clk 0:00:07.9]} 45...
Re7 {[%clk 0:00:03.5]} 46. Rh4 {[%clk 0:00:07.8]} 46... Rf7 {[%clk 0:00:01.9]}
47. Rh6 {[%clk 0:00:07.4]} 47... Re7 {[%clk 0:00:02]} 48. Rh2 {[%clk 0:00:07.2]}
48... Rf7 {[%clk 0:00:01.9]} 49. Ke3 {[%clk 0:00:07.7]} 49... Re7 {[%clk
0:00:01.3]} 50. Kf4 {[%clk 0:00:08.3]} 1-0

[Event "*** SCC Grand Prix: Titled Tuesday Blitz"]
[Site "Chess.com"]
[Date "2020.08.11"]
[Round "7"]
[White "olksuna"]
[Black "IMAghasiyevKamal"]
[Result "1-0"]
[WhiteElo "2642"]
[BlackElo "2448"]
[TimeControl "180+1"]
[EndTime "11:18:49 PDT"]
[Termination "olksuna won by resignation"]

1. Nf3 {[%clk 0:03:00.9]} 1... Nf6 {[%clk 0:02:57.5]} 2. g3 {[%clk 0:03:01.2]}
2... g6 {[%clk 0:02:57.2]} 3. b4 {[%clk 0:03:01.2]} 3... Bg7 {[%clk 0:02:55.8]}
4. Bb2 {[%clk 0:03:01.8]} 4... O-O {[%clk 0:02:54.1]} 5. Bg2 {[%clk 0:03:02]}
5... d6 {[%clk 0:02:53.8]} 6. O-O {[%clk 0:03:01.6]} 6... e5 {[%clk 0:02:53.8]}
7. d3 {[%clk 0:03:01.9]} 7... h6 {[%clk 0:02:52.5]} 8. c4 {[%clk 0:03:01.9]}
8... Be6 {[%clk 0:02:48.4]} 9. Nc3 {[%clk 0:02:59.3]} 9... Qd7 {[%clk 0:02:46]}
10. Re1 {[%clk 0:02:57.5]} 10... Nc6 {[%clk 0:02:41.3]} 11. b5 {[%clk
0:02:55.3]} 11... Ne7 {[%clk 0:02:41.2]} 12. Rc1 {[%clk 0:02:50.5]} 12... b6
{[%clk 0:02:35.2]} 13. d4 {[%clk 0:02:49.6]} 13... exd4 {[%clk 0:02:03.8]} 14.
Nxd4 {[%clk 0:02:48.4]} 14... Rad8 {[%clk 0:02:01.7]} 15. Nxe6 {[%clk
0:02:47.2]} 15... fxe6 {[%clk 0:01:55.7]} 16. Qd3 {[%clk 0:02:45.7]} 16... Ng4
{[%clk 0:01:50.5]} 17. Rf1 {[%clk 0:02:18.3]} 17... Ne5 {[%clk 0:01:45.4]} 18.
Qe4 {[%clk 0:02:18.4]} 18... d5 {[%clk 0:01:37]} 19. cxd5 {[%clk 0:02:17.4]}
19... exd5 {[%clk 0:01:37.3]} 20. Qb4 {[%clk 0:02:02.6]} 20... Nc4 {[%clk
0:01:30.4]} 21. Nxd5 {[%clk 0:01:58.3]} 21... Nxb2 {[%clk 0:01:24.3]} 22. Nxe7+
{[%clk 0:01:58]} 22... Kh7 {[%clk 0:01:24.5]} 23. Be4 {[%clk 0:01:53.4]} 23...
Rf6 {[%clk 0:01:19.8]} 24. Rc6 {[%clk 0:01:46.4]} 24... Rxc6 {[%clk 0:00:59.8]}
25. bxc6 {[%clk 0:01:38.4]} 25... Qd4 {[%clk 0:00:56.8]} 26. Bxg6+ {[%clk
0:01:31.4]} 26... Kh8 {[%clk 0:00:56.7]} 27. Qxd4 {[%clk 0:01:23.2]} 27... Bxd4
{[%clk 0:00:54.5]} 28. Kg2 {[%clk 0:01:07.1]} 28... Bc5 {[%clk 0:00:50.6]} 29.
Nf5 {[%clk 0:01:01.7]} 29... Rd2 {[%clk 0:00:50.3]} 30. e3 {[%clk 0:00:55.7]}
30... Nc4 {[%clk 0:00:49.6]} 31. Kg1 {[%clk 0:00:33.3]} 31... Rxa2 {[%clk
0:00:47.3]} 32. Rc1 {[%clk 0:00:31.4]} 32... Ne5 {[%clk 0:00:44.1]} 33. Be8
{[%clk 0:00:29.2]} 33... a5 {[%clk 0:00:38]} 34. Nxh6 {[%clk 0:00:29.1]} 34...
a4 {[%clk 0:00:35.5]} 35. Nf7+ {[%clk 0:00:29.2]} 35... Nxf7 {[%clk 0:00:34.7]}
36. Bxf7 {[%clk 0:00:30.1]} 36... Rb2 {[%clk 0:00:33.4]} 37. Rd1 {[%clk
0:00:30.2]} 37... Kg7 {[%clk 0:00:26.8]} 38. Rd7 {[%clk 0:00:28.6]} 38... a3
{[%clk 0:00:24.5]} 39. Rxc7 {[%clk 0:00:26.5]} 39... Kf6 {[%clk 0:00:22.7]} 40.
Ra7 {[%clk 0:00:23.8]} 40... Rc2 {[%clk 0:00:18]} 41. c7 {[%clk 0:00:20.6]}
41... Be7 {[%clk 0:00:15.2]} 42. Bb3 {[%clk 0:00:15.9]} 42... Rc3 {[%clk
0:00:13.9]} 43. g4 {[%clk 0:00:08.2]} 43... Bd6 {[%clk 0:00:10.2]} 44. h4 {[%clk
0:00:07.3]} 44... b5 {[%clk 0:00:10.5]} 45. g5+ {[%clk 0:00:07.4]} 45... Kg6
{[%clk 0:00:10.9]} 46. Bd5 {[%clk 0:00:05.5]} 46... Kh5 {[%clk 0:00:07.5]} 47.
Bf7+ {[%clk 0:00:04.6]} 47... Kxh4 {[%clk 0:00:07.3]} 48. g6 {[%clk 0:00:05.5]}
48... Be5 {[%clk 0:00:06.3]} 49. Kg2 {[%clk 0:00:03.8]} 49... Kg5 {[%clk
0:00:04.6]} 50. f4+ {[%clk 0:00:03.8]} 50... Bxf4 {[%clk 0:00:04.2]} 51. exf4+
{[%clk 0:00:04.7]} 51... Kxf4 {[%clk 0:00:04.8]} 52. g7 {[%clk 0:00:04.6]} 52...
Rg3+ {[%clk 0:00:04.6]} 53. Kf2 {[%clk 0:00:05.2]} 53... Rxg7 {[%clk 0:00:04]}
54. c8=Q {[%clk 0:00:05.2]} 54... a2 {[%clk 0:00:04]} 55. Qc7+ {[%clk
0:00:05.4]} 55... Ke4 {[%clk 0:00:03.7]} 56. Rxa2 {[%clk 0:00:06.3]} 56... Rxf7+
{[%clk 0:00:03.4]} 57. Qxf7 {[%clk 0:00:06.3]} 57... Kd3 {[%clk 0:00:04.3]} 58.
Qf3+ {[%clk 0:00:07.2]} 58... Kc4 {[%clk 0:00:04.2]} 59. Rb2 {[%clk 0:00:07.7]}
1-0

[Event "*** SCC Grand Prix: Titled Tuesday Blitz"]
[Site "Chess.com"]
[Date "2020.08.11"]
[Round "7"]
[White "Guenplen"]
[Black "baki83"]
[Result "1/2-1/2"]
[WhiteElo "2875"]
[BlackElo "2728"]
[TimeControl "180+1"]
[EndTime "11:18:51 PDT"]
[Termination "Game drawn - insufficient material"]

1. d4 {[%clk 0:03:00.9]} 1... d5 {[%clk 0:02:59.4]} 2. Bf4 {[%clk 0:03:00.8]}
2... Nf6 {[%clk 0:02:58]} 3. e3 {[%clk 0:03:01]} 3... e6 {[%clk 0:02:58.2]} 4.
Nd2 {[%clk 0:03:00.4]} 4... Bd6 {[%clk 0:02:58.1]} 5. Bg3 {[%clk 0:03:00.9]}
5... c5 {[%clk 0:02:57.6]} 6. Ngf3 {[%clk 0:02:57.9]} 6... O-O {[%clk
0:02:55.8]} 7. Bd3 {[%clk 0:02:56.1]} 7... c4 {[%clk 0:02:49.1]} 8. Be2 {[%clk
0:02:55.9]} 8... b5 {[%clk 0:02:49]} 9. Ne5 {[%clk 0:02:54.1]} 9... Bb7 {[%clk
0:02:48.9]} 10. O-O {[%clk 0:02:47.8]} 10... Nc6 {[%clk 0:02:36.7]} 11. f4
{[%clk 0:02:37.5]} 11... Ne7 {[%clk 0:02:36.3]} 12. Bh4 {[%clk 0:02:37.3]} 12...
Ne4 {[%clk 0:02:31.7]} 13. Nxe4 {[%clk 0:02:32.2]} 13... dxe4 {[%clk 0:02:31.5]}
14. Bg4 {[%clk 0:02:23]} 14... Bd5 {[%clk 0:02:23.2]} 15. f5 {[%clk 0:02:06.6]}
15... exf5 {[%clk 0:01:36.5]} 16. Bxf5 {[%clk 0:02:05.7]} 16... f6 {[%clk
0:01:31.5]} 17. Bh3 {[%clk 0:01:32.2]} 17... fxe5 {[%clk 0:01:18]} 18. Rxf8+
{[%clk 0:01:31.7]} 18... Kxf8 {[%clk 0:01:07.1]} 19. Qh5 {[%clk 0:01:28.1]}
19... Kg8 {[%clk 0:00:53]} 20. dxe5 {[%clk 0:01:27.7]} 20... Bf7 {[%clk
0:00:34]} 21. Qg4 {[%clk 0:01:03.9]} 21... Bxe5 {[%clk 0:00:23]} 22. Rd1 {[%clk
0:01:04.3]} 22... Qe8 {[%clk 0:00:21.5]} 23. Qxe4 {[%clk 0:00:29.8]} 23... Ng6
{[%clk 0:00:21.7]} 24. Bf5 {[%clk 0:00:29.6]} 24... Bxb2 {[%clk 0:00:15.9]} 25.
Bg3 {[%clk 0:00:19.2]} 25... Qxe4 {[%clk 0:00:15.3]} 26. Bxe4 {[%clk 0:00:20.1]}
26... Re8 {[%clk 0:00:15]} 27. Bc6 {[%clk 0:00:20.2]} 27... Rf8 {[%clk 0:00:13]}
28. Bxb5 {[%clk 0:00:18.7]} 28... Be5 {[%clk 0:00:12.8]} 29. Bf2 {[%clk
0:00:11.9]} 29... Rb8 {[%clk 0:00:12.7]} 30. a4 {[%clk 0:00:11.7]} 30... h6
{[%clk 0:00:12.1]} 31. e4 {[%clk 0:00:11.9]} 31... a5 {[%clk 0:00:11.7]} 32. Ba7
{[%clk 0:00:11.7]} 32... Ra8 {[%clk 0:00:11.3]} 33. Be3 {[%clk 0:00:10.6]} 33...
Bc3 {[%clk 0:00:09.6]} 34. h3 {[%clk 0:00:07.1]} 34... Ne5 {[%clk 0:00:08.9]}
35. Bf4 {[%clk 0:00:07.2]} 35... g5 {[%clk 0:00:08.5]} 36. Be3 {[%clk
0:00:06.7]} 36... Kg7 {[%clk 0:00:08.3]} 37. Rd6 {[%clk 0:00:06.8]} 37... Bb4
{[%clk 0:00:04.5]} 38. Rb6 {[%clk 0:00:06.9]} 38... Bc3 {[%clk 0:00:04.8]} 39.
Rd6 {[%clk 0:00:06.5]} 39... Ng6 {[%clk 0:00:03.4]} 40. Rb6 {[%clk 0:00:05.9]}
40... Be5 {[%clk 0:00:03.7]} 41. Rb7 {[%clk 0:00:05.6]} 41... Kf6 {[%clk
0:00:03.5]} 42. Bb6 {[%clk 0:00:05.2]} 42... Kg7 {[%clk 0:00:03.8]} 43. Bxc4
{[%clk 0:00:04.5]} 43... Nh8 {[%clk 0:00:02.4]} 44. Bd5 {[%clk 0:00:04.3]} 44...
Rb8 {[%clk 0:00:03]} 45. Rxb8 {[%clk 0:00:03.8]} 45... Bxb8 {[%clk 0:00:03.9]}
46. c4 {[%clk 0:00:04.2]} 46... Bxd5 {[%clk 0:00:03.8]} 47. exd5 {[%clk
0:00:05.1]} 47... Nf7 {[%clk 0:00:04.3]} 48. c5 {[%clk 0:00:05.1]} 48... Kf6
{[%clk 0:00:04.6]} 49. Bxa5 {[%clk 0:00:03.9]} 49... Ke5 {[%clk 0:00:04.3]} 50.
d6 {[%clk 0:00:04.2]} 50... Kd5 {[%clk 0:00:04]} 51. Bb6 {[%clk 0:00:03.9]}
51... Kc6 {[%clk 0:00:03.8]} 52. a5 {[%clk 0:00:04.3]} 52... Ne5 {[%clk
0:00:04.1]} 53. Kf2 {[%clk 0:00:03.8]} 53... Nd7 {[%clk 0:00:04.2]} 54. Kf3
{[%clk 0:00:03.8]} 54... Nxc5 {[%clk 0:00:04.6]} 55. Bxc5 {[%clk 0:00:03.3]}
55... Kxc5 {[%clk 0:00:05.5]} 56. d7 {[%clk 0:00:03.9]} 56... Bc7 {[%clk
0:00:06]} 57. a6 {[%clk 0:00:04.8]} 57... Kb6 {[%clk 0:00:06.3]} 58. Kg4 {[%clk
0:00:05.4]} 58... Kxa6 {[%clk 0:00:06.6]} 59. Kh5 {[%clk 0:00:06.2]} 59... Kb6
{[%clk 0:00:06.6]} 60. Kxh6 {[%clk 0:00:06.6]} 60... Bd8 {[%clk 0:00:06.9]} 61.
Kh5 {[%clk 0:00:05.1]} 61... Kc6 {[%clk 0:00:07.4]} 62. g3 {[%clk 0:00:05.4]}
62... Kxd7 {[%clk 0:00:08.3]} 63. h4 {[%clk 0:00:05.9]} 63... gxh4 {[%clk
0:00:08.7]} 64. gxh4 {[%clk 0:00:06.8]} 64... Bxh4 {[%clk 0:00:08.6]} 1/2-1/2

[Event "*** SCC Grand Prix: Titled Tuesday Blitz"]
[Site "Chess.com"]
[Date "2020.08.11"]
[Round "7"]
[White "MNyuyu"]
[Black "aa175"]
[Result "1/2-1/2"]
[WhiteElo "2346"]
[BlackElo "2476"]
[TimeControl "180+1"]
[EndTime "11:18:52 PDT"]
[Termination "Game drawn - insufficient material"]

1. d4 {[%clk 0:03:00.9]} 1... e5 {[%clk 0:02:56.3]} 2. dxe5 {[%clk 0:03:00.4]}
2... Nc6 {[%clk 0:02:56]} 3. Nf3 {[%clk 0:03:00.3]} 3... Qe7 {[%clk 0:02:55.2]}
4. g3 {[%clk 0:03:00]} 4... Nxe5 {[%clk 0:02:54.2]} 5. Nxe5 {[%clk 0:02:59.7]}
5... Qxe5 {[%clk 0:02:54]} 6. Bg2 {[%clk 0:02:59.7]} 6... h5 {[%clk 0:02:53.1]}
7. h4 {[%clk 0:02:58.4]} 7... Nf6 {[%clk 0:02:49.9]} 8. c3 {[%clk 0:02:53.1]}
8... Bc5 {[%clk 0:02:46.4]} 9. Bf4 {[%clk 0:02:42.7]} 9... Qf5 {[%clk
0:02:41.1]} 10. Qd3 {[%clk 0:02:37.1]} 10... Qxd3 {[%clk 0:02:34.4]} 11. exd3
{[%clk 0:02:36.5]} 11... d6 {[%clk 0:02:34]} 12. Nd2 {[%clk 0:02:31.4]} 12...
Bf5 {[%clk 0:02:08.1]} 13. d4 {[%clk 0:02:29.5]} 13... Bb6 {[%clk 0:02:06]} 14.
Bxb7 {[%clk 0:02:28.2]} 14... Rb8 {[%clk 0:02:03.7]} 15. Bc6+ {[%clk 0:02:27.6]}
15... Bd7 {[%clk 0:01:59]} 16. Bxd7+ {[%clk 0:02:26.4]} 16... Kxd7 {[%clk
0:01:59.9]} 17. O-O {[%clk 0:02:12.1]} 17... Nd5 {[%clk 0:01:50.9]} 18. Be3
{[%clk 0:02:05]} 18... Ba5 {[%clk 0:01:50.8]} 19. Nc4 {[%clk 0:01:58.8]} 19...
Bb6 {[%clk 0:01:50.7]} 20. Bd2 {[%clk 0:01:54.1]} 20... Rhe8 {[%clk 0:01:49.8]}
21. Rfe1 {[%clk 0:01:53]} 21... Nf6 {[%clk 0:01:49.7]} 22. Bg5 {[%clk
0:01:42.2]} 22... Ne4 {[%clk 0:01:41]} 23. Bf4 {[%clk 0:01:33.7]} 23... Re7
{[%clk 0:01:26]} 24. f3 {[%clk 0:01:24.4]} 24... Nf6 {[%clk 0:01:23.4]} 25.
Rxe7+ {[%clk 0:01:23]} 25... Kxe7 {[%clk 0:01:24.3]} 26. Bg5 {[%clk 0:01:22.8]}
26... Kd7 {[%clk 0:01:23.1]} 27. Bxf6 {[%clk 0:01:21.9]} 27... gxf6 {[%clk
0:01:24]} 28. Re1 {[%clk 0:01:19.9]} 28... a6 {[%clk 0:01:19.9]} 29. Nxb6+
{[%clk 0:01:19]} 29... Rxb6 {[%clk 0:01:20.8]} 30. Re2 {[%clk 0:01:18.6]} 30...
d5 {[%clk 0:01:19.6]} 31. Kf2 {[%clk 0:01:16.9]} 31... f5 {[%clk 0:01:18.6]} 32.
Ke3 {[%clk 0:01:13.2]} 32... Re6+ {[%clk 0:01:15.1]} 33. Kf2 {[%clk 0:01:12]}
33... Rb6 {[%clk 0:01:14.5]} 34. b3 {[%clk 0:01:11.7]} 34... Rf6 {[%clk
0:01:11.4]} 35. Re5 {[%clk 0:01:06.3]} 35... Kd6 {[%clk 0:01:10.9]} 36. Ke3
{[%clk 0:01:03]} 36... Re6 {[%clk 0:01:00.7]} 37. Kf4 {[%clk 0:00:57.9]} 37...
Rxe5 {[%clk 0:00:58.2]} 38. dxe5+ {[%clk 0:00:54.4]} 38... Ke6 {[%clk
0:00:59.1]} 39. Kg5 {[%clk 0:00:52.2]} 39... c5 {[%clk 0:00:54.2]} 40. g4 {[%clk
0:00:34.1]} 40... fxg4 {[%clk 0:00:11.3]} 41. fxg4 {[%clk 0:00:33.7]} 41... hxg4
{[%clk 0:00:11.4]} 42. Kxg4 {[%clk 0:00:33.4]} 42... Kxe5 {[%clk 0:00:11.7]} 43.
h5 {[%clk 0:00:32.5]} 43... d4 {[%clk 0:00:03.5]} 44. cxd4+ {[%clk 0:00:31.7]}
44... cxd4 {[%clk 0:00:04.4]} 45. h6 {[%clk 0:00:31.2]} 45... Kf6 {[%clk
0:00:04.6]} 46. Kf4 {[%clk 0:00:30.9]} 46... Kg6 {[%clk 0:00:05]} 47. Ke4 {[%clk
0:00:30.9]} 47... Kxh6 {[%clk 0:00:04.1]} 48. Kxd4 {[%clk 0:00:30.9]} 48... Kg5
{[%clk 0:00:04.5]} 49. Ke4 {[%clk 0:00:30.1]} 49... Kg4 {[%clk 0:00:04.4]} 50.
Ke3 {[%clk 0:00:28.4]} 50... Kg3 {[%clk 0:00:02.3]} 51. Ke4 {[%clk 0:00:28.2]}
51... Kg4 {[%clk 0:00:01.1]} 52. Ke3 {[%clk 0:00:27.4]} 52... Kg3 {[%clk
0:00:01]} 53. Ke2 {[%clk 0:00:17.4]} 53... Kf4 {[%clk 0:00:01.2]} 54. a3 {[%clk
0:00:16.2]} 54... f5 {[%clk 0:00:01.7]} 55. b4 {[%clk 0:00:14.5]} 55... Kg3
{[%clk 0:00:02]} 56. Kf1 {[%clk 0:00:13.4]} 56... Kf3 {[%clk 0:00:02.6]} 57. a4
{[%clk 0:00:12.9]} 57... Ke4 {[%clk 0:00:02.6]} 58. b5 {[%clk 0:00:12.7]} 58...
axb5 {[%clk 0:00:01.6]} 59. axb5 {[%clk 0:00:12.5]} 59... Kd5 {[%clk 0:00:01.8]}
60. Kf2 {[%clk 0:00:12.6]} 60... Kd6 {[%clk 0:00:01.2]} 61. Kf3 {[%clk
0:00:12.4]} 61... Kc5 {[%clk 0:00:01.4]} 62. Kf4 {[%clk 0:00:12.1]} 62... Kb6
{[%clk 0:00:01.3]} 63. Kxf5 {[%clk 0:00:11.7]} 63... Ka5 {[%clk 0:00:01.1]} 64.
Ke5 {[%clk 0:00:11.2]} 64... Kxb5 {[%clk 0:00:01.1]} 1/2-1/2

[Event "*** SCC Grand Prix: Titled Tuesday Blitz"]
[Site "Chess.com"]
[Date "2020.08.11"]
[Round "7"]
[White "emperor87"]
[Black "Jovidon91"]
[Result "1-0"]
[WhiteElo "2624"]
[BlackElo "2444"]
[TimeControl "180+1"]
[EndTime "11:18:54 PDT"]
[Termination "emperor87 won by resignation"]

1. d4 {[%clk 0:03:00.9]} 1... Nf6 {[%clk 0:02:55.4]} 2. Nf3 {[%clk 0:03:00.6]}
2... e6 {[%clk 0:02:54.3]} 3. g3 {[%clk 0:02:59.8]} 3... b5 {[%clk 0:02:53.1]}
4. Bg2 {[%clk 0:02:59.6]} 4... Bb7 {[%clk 0:02:53.2]} 5. O-O {[%clk 0:03:00.1]}
5... c5 {[%clk 0:02:53.1]} 6. a4 {[%clk 0:02:59.5]} 6... b4 {[%clk 0:02:52]} 7.
c3 {[%clk 0:02:59.3]} 7... cxd4 {[%clk 0:02:49]} 8. cxd4 {[%clk 0:02:47.8]} 8...
Be7 {[%clk 0:02:47.4]} 9. Nbd2 {[%clk 0:02:46.9]} 9... O-O {[%clk 0:02:45.3]}
10. a5 {[%clk 0:02:46.3]} 10... a6 {[%clk 0:02:39.6]} 11. Nb3 {[%clk 0:02:45.6]}
11... Bd5 {[%clk 0:02:36.5]} 12. Ne5 {[%clk 0:02:44.7]} 12... Bxg2 {[%clk
0:02:34.1]} 13. Kxg2 {[%clk 0:02:44.2]} 13... d6 {[%clk 0:02:25.7]} 14. Nf3
{[%clk 0:02:34.9]} 14... Qd7 {[%clk 0:02:12.6]} 15. Qd3 {[%clk 0:02:34.8]} 15...
Qb7 {[%clk 0:02:11.7]} 16. Kg1 {[%clk 0:02:16.3]} 16... Nc6 {[%clk 0:02:00.4]}
17. e4 {[%clk 0:02:11]} 17... d5 {[%clk 0:01:58.4]} 18. e5 {[%clk 0:02:09.1]}
18... Ne4 {[%clk 0:01:48.1]} 19. h4 {[%clk 0:02:07.9]} 19... f6 {[%clk
0:01:43.9]} 20. exf6 {[%clk 0:02:04.8]} 20... Bxf6 {[%clk 0:01:42.5]} 21. Ng5
{[%clk 0:02:00.9]} 21... Bxg5 {[%clk 0:01:40]} 22. hxg5 {[%clk 0:02:01.8]} 22...
Qf7 {[%clk 0:01:31.7]} 23. Kg2 {[%clk 0:01:50]} 23... Qh5 {[%clk 0:01:03.6]} 24.
Qe3 {[%clk 0:01:42.3]} 24... Rf5 {[%clk 0:00:55.2]} 25. f4 {[%clk 0:01:38.7]}
25... Re8 {[%clk 0:00:40.7]} 26. Bd2 {[%clk 0:01:35.1]} 26... Ref8 {[%clk
0:00:24.3]} 27. Rh1 {[%clk 0:01:01.4]} 27... Qg6 {[%clk 0:00:23.4]} 28. Raf1
{[%clk 0:00:54.5]} 28... R5f7 {[%clk 0:00:21.5]} 29. Be1 {[%clk 0:00:49.4]}
29... Ne7 {[%clk 0:00:19.4]} 30. Qd3 {[%clk 0:00:41.9]} 30... Nf5 {[%clk
0:00:10.1]} 31. Nc1 {[%clk 0:00:29.3]} 31... Nfd6 {[%clk 0:00:10]} 32. Ne2
{[%clk 0:00:28.1]} 32... Nc4 {[%clk 0:00:09.7]} 33. Bxb4 {[%clk 0:00:25.8]}
33... Rb8 {[%clk 0:00:08.3]} 34. Bc3 {[%clk 0:00:25]} 34... Ned6 {[%clk
0:00:08.2]} 35. Qxg6 {[%clk 0:00:24.1]} 35... hxg6 {[%clk 0:00:09.1]} 36. Rh4
{[%clk 0:00:22.5]} 36... Ne3+ {[%clk 0:00:09]} 37. Kf2 {[%clk 0:00:21.3]} 37...
Nxf1 {[%clk 0:00:09.9]} 38. Kxf1 {[%clk 0:00:21.5]} 38... Ne4 {[%clk 0:00:10.2]}
39. Kg2 {[%clk 0:00:20.2]} 39... Nxc3 {[%clk 0:00:10.5]} 40. bxc3 {[%clk
0:00:20]} 40... Rb2 {[%clk 0:00:10.9]} 41. Kf3 {[%clk 0:00:20.1]} 41... Rfb7
{[%clk 0:00:09.3]} 42. Rh1 {[%clk 0:00:18.9]} 42... R7b5 {[%clk 0:00:09.4]} 43.
Re1 {[%clk 0:00:18.4]} 43... Rxa5 {[%clk 0:00:08.4]} 44. Ng1 {[%clk 0:00:18.5]}
44... Kf7 {[%clk 0:00:08.2]} 45. Kg4 {[%clk 0:00:18]} 45... Raa2 {[%clk
0:00:05.6]} 46. Nf3 {[%clk 0:00:18]} 46... Re2 {[%clk 0:00:06]} 47. Rb1 {[%clk
0:00:17.4]} 47... Rab2 {[%clk 0:00:05.2]} 48. Ra1 {[%clk 0:00:17.6]} 48... Ra2
{[%clk 0:00:04.6]} 49. Rb1 {[%clk 0:00:17.4]} 49... Rab2 {[%clk 0:00:04.4]} 50.
Rh1 {[%clk 0:00:16.5]} 50... Ra2 {[%clk 0:00:04.8]} 51. Ne5+ {[%clk 0:00:15.9]}
51... Ke7 {[%clk 0:00:05.2]} 52. Nxg6+ {[%clk 0:00:15.9]} 52... Kd6 {[%clk
0:00:06.1]} 53. Rh7 {[%clk 0:00:15.3]} 53... a5 {[%clk 0:00:06.1]} 54. Rxg7
{[%clk 0:00:15.2]} 54... Kc6 {[%clk 0:00:07]} 55. Ne5+ {[%clk 0:00:15.2]} 55...
Kb6 {[%clk 0:00:06.8]} 56. Re7 {[%clk 0:00:14.5]} 56... a4 {[%clk 0:00:06.6]}
57. g6 {[%clk 0:00:14.9]} 57... Rg2 {[%clk 0:00:03.2]} 58. g7 {[%clk 0:00:14.8]}
58... Rxg3+ {[%clk 0:00:02.8]} 59. Kxg3 {[%clk 0:00:14.5]} 59... Ra1 {[%clk
0:00:03.7]} 60. Nf3 {[%clk 0:00:14.7]} 1-0